fUST/lending_fUST_20250602
["ID","MTS","AMOUNT","RATE_DAILY","PERIOD"]
[363668738,1748806242776,-1047.38,0.00022191,2]
[363668740,1748806242786,-1069.0,0.00022191,2]
[363668742,1748806242797,-500.42,0.00022191,2]
[363668744,1748806242808,-966.98,0.00022191,2]
[363668746,1748806242820,-1377.76,0.00022191,2]
[363668749,1748806242831,-622.88,0.00022191,2]
[363668751,1748806242842,-198.0,0.00022192,7]
[363668753,1748806242853,-151.0,0.000222,7]
[363668755,1748806242864,-151.0,0.000222,5]
[363668757,1748806242875,-2574.45,0.000222,2]
[363668760,1748806242886,-4001.89342993,0.0002221,6]
[363668762,1748806242897,-173.4381982,0.00022219,2]
[363668764,1748806242908,-176.4890519,0.00022219,2]
[363668766,1748806242919,-439.9855199,0.00022219,2]
[363668768,1748806242930,-572.3927371,0.00022219,2]
[363668771,1748806242942,-572.3927371,0.00022219,2]
[363668773,1748806242953,-153.0,0.00022219,2]
[363668775,1748806242965,-247.4536993,0.00022219,2]
[363668777,1748806242978,-153.0,0.00022219,2]
[363668780,1748806242990,-153.0,0.00022219,2]
[363668782,1748806243001,-4694.0762367,0.00022252,2]
[363668784,1748806243015,-5000.0,0.00022252,2]
[363668786,1748806243026,-5000.0,0.00022252,2]
[363668788,1748806243038,-5000.0,0.00022252,2]
[363668790,1748806243050,-2666.53071994,0.00022252,2]
[363669126,1748806246361,-430.0,0.00016438,2]
[363669128,1748806246372,-430.0,0.00016438,2]
[363669130,1748806246382,-430.0,0.00016712,2]
[363669132,1748806246391,-219.83149464,0.00017359,2]
[363669136,1748806246415,-430.0,0.00016986,2]
[363669138,1748806246424,-2287.27982574,0.00017359,2]
[363669178,1748806246947,-430.0,0.0001726,2]
[363669180,1748806246956,-2492.88867962,0.00017359,2]
[363669182,1748806246966,-430.0,0.00017534,2]
[363669206,1748806247188,-300.0,0.00019725,2]
[363669209,1748806247200,-669.75,0.00019726,2]
[363669211,1748806247209,-193.40841438,0.0002,2]
[363669213,1748806247222,-476.34158562,0.0002,2]
[363669215,1748806247231,-669.75,0.00020273,2]
[363669217,1748806247241,-289.56434135,0.00020399,2]
[363669219,1748806247250,-72.67554786,0.00020547,2]
[363669231,1748806247359,-0.5197997,0.00020547,2]
[363669233,1748806247371,-596.55465244,0.00020547,2]
[363669235,1748806247381,-669.75,0.00020821,2]
[363669237,1748806247389,-655.20004974,0.00021095,2]
[363669662,1748806499652,181.8290686,0.00015152,2]
[363669664,1748806517554,1475.491043,0.00015151,2]
[363669667,1748806585079,8750.0461401,0.00015107,2]
[363669670,1748806816854,5000.0,0.0001552,2]
[363669672,1748807006557,1024.5144332,0.00015103,2]
[363669674,1748807019373,5000.0,0.0001552,2]
[363669681,1748807208453,24900.0,0.00014993,2]
[363669683,1748807225814,5000.0,0.0001552,2]
[363669684,1748807239114,-204.2136669,0.00015635,2]
[363669685,1748807239142,-160.0,0.00015735,2]
[363669686,1748807239168,-1200.0,0.00015992,2]
[363669687,1748807239192,-300.0,0.00015992,2]
[363669688,1748807239216,-448.32886723,0.00015993,2]
[363669689,1748807240980,5000.0,0.0001552,2]
[363669691,1748807265735,-233.52,0.00015833,2]
[363669692,1748807270175,-270.12733927,0.00015833,2]
[363669694,1748807295616,-152.0,0.00015833,2]
[363669695,1748807301990,-156.63888565,0.00015833,2]
[363669696,1748807304507,-192.74847749,0.00015833,2]
[363669697,1748807309490,-173.52088538,0.00015833,2]
[363669698,1748807311922,-195.85382659,0.00015833,2]
[363669699,1748807317249,-159.05788085,0.00015833,2]
[363669700,1748807319162,-218.10873574,0.00015833,2]
[363669701,1748807320587,-224.536575,0.00015833,2]
[363669702,1748807325077,-212.0045471,0.00015833,2]
[363669703,1748807328374,-154.39425402,0.00015833,2]
[363669705,1748807333398,-301.72121819,0.00015833,2]
[363669706,1748807335345,-161.78481334,0.00015833,2]
[363669707,1748807336821,-172.89261289,0.00015833,2]
[363669708,1748807341882,-312.21939087,0.00015833,2]
[363669709,1748807343877,-181.86573826,0.00015833,2]
[363669710,1748807346052,-239.91861245,0.00015833,2]
[363669711,1748807348225,-274.17565489,0.00015833,2]
[363669712,1748807350231,-157.90957491,0.00015833,2]
[363669713,1748807351682,-152.0,0.00015833,2]
[363669714,1748807357733,-255.11607998,0.00015833,2]
[363669715,1748807359616,-306.82480709,0.00015833,2]
[363669716,1748807361760,-141.06009004,0.00015833,2]
[363669717,1748807361785,-19.65823604,0.00015833,2]
[363669718,1748807362255,3511.0,0.00015325,2]
[363669719,1748807364943,-140.34176396,0.00015833,2]
[363669720,1748807364966,-19.46581304,0.00015992,2]
[363669721,1748807367114,-167.347726,0.00015992,2]
[363669722,1748807370514,-189.85300442,0.00015992,2]
[363669723,1748807373052,-226.27058142,0.00015832,2]
[363669724,1748807374538,-216.28331354,0.00015832,2]
[363669725,1748807376482,-189.68195928,0.00015832,2]
[363669726,1748807380738,-288.77224975,0.00015832,2]
[363669727,1748807385018,-211.22775025,0.00015832,2]
[363669728,1748807389505,-273.52668646,0.00015832,2]
[363669729,1748807391473,-205.25416355,0.00015832,2]
[363669730,1748807396949,-151.98457739,0.00015832,2]
[363669731,1748807398597,-193.5442518,0.00015832,2]
[363669732,1748807400409,-157.41593566,0.00015832,2]
[363669733,1748807405319,-261.82249906,0.00015832,2]
[363669734,1748807406854,-164.58,0.00015832,2]
[363669735,1748807413150,-154.60661659,0.00015832,2]
[363669736,1748807415046,-174.57,0.00015832,2]
[363669761,1748807431835,-331.99606633,0.00015832,2]
[363669763,1748807431847,-534.5,0.00015832,2]
[363669765,1748807431859,-1263.96334892,0.00015832,2]
[363669767,1748807431870,-300.0,0.00015991,2]
[363669769,1748807431880,-300.0,0.00015991,2]
[363669771,1748807431889,-1200.0,0.00015991,2]
[363669774,1748807431900,-123.33345654,0.00015992,2]
[363669775,1748807431909,-500.0,0.00015992,2]
[363669777,1748807431919,-0.30541303,0.00015992,2]
[363669786,1748807431999,-499.69458697,0.00015992,2]
[363669789,1748807432013,-500.0,0.00015992,2]
[363669791,1748807432034,-500.0,0.00015992,2]
[363669793,1748807432044,-526.07320285,0.00015992,2]
[363669795,1748807432054,-390.83715719,0.00015992,2]
[363669797,1748807432063,-500.0,0.00015992,2]
[363669798,1748807432073,-409.02410236,0.00015992,2]
[363669800,1748807432083,-500.0,0.00015992,2]
[363669802,1748807432092,-500.0,0.00015992,2]
[363669804,1748807432101,-500.0,0.00015992,2]
[363669806,1748807432111,-500.0,0.00015992,2]
[363669808,1748807432120,-500.0,0.00015992,2]
[363669810,1748807432130,-500.0,0.00015992,2]
[363669812,1748807432139,-500.0,0.00015992,2]
[363669814,1748807432150,-500.0,0.00015992,2]
[363669816,1748807432159,-500.0,0.00015992,2]
[363669818,1748807432169,-456.62170939,0.00015992,2]
[363669820,1748807432179,-239.91861245,0.00015992,2]
[363669822,1748807432189,-157.90957491,0.00015992,2]
[363669825,1748807432198,-152.0,0.00015992,2]
[363669827,1748807432208,-561.94088707,0.00015992,2]
[363669829,1748807432218,-167.347726,0.00015992,2]
[363669831,1748807432228,-205.25416355,0.00015992,2]
[363669833,1748807432237,-50000.0,0.00015993,2]
[363669835,1748807432247,-300.0,0.00015993,2]
[363669837,1748807432256,-2549.87,0.00016428,3]
[363669839,1748807432265,-160.0,0.00016437,2]
[363669841,1748807432275,-430.0,0.00016438,2]
[363669843,1748807432284,-562.42413913,0.00016438,2]
[363669845,1748807432294,-450.0,0.00016438,2]
[363669847,1748807432303,-430.0,0.00016438,2]
[363669849,1748807432313,-432.61563498,0.00016438,2]
[363669851,1748807432322,-430.0,0.00016438,2]
[363669853,1748807432332,-430.0,0.00016438,2]
[363669855,1748807432342,-430.0,0.00016438,2]
[363669857,1748807432351,-430.0,0.00016438,2]
[363669859,1748807432360,-430.0,0.00016438,2]
[363669861,1748807432370,-430.0,0.00016438,2]
[363669863,1748807432379,-488.7955054,0.00016438,2]
[363669865,1748807432389,-430.0,0.00016438,2]
[363669867,1748807432400,-524.85156143,0.00016438,2]
[363669869,1748807432410,-430.0,0.00016438,2]
[363669871,1748807432419,-430.0,0.00016438,2]
[363669873,1748807432428,-430.0,0.00016438,2]
[363669875,1748807432437,-430.0,0.00016438,2]
[363669877,1748807432451,-371.02602251,0.00016438,2]
[363669879,1748807432461,-538.21524396,0.00016438,2]
[363669881,1748807432471,-430.0,0.00016438,2]
[363669883,1748807432480,-430.0,0.00016438,2]
[363669885,1748807432490,-430.0,0.00016438,2]
[363669887,1748807432500,-175.98700749,0.00016438,2]
[363669901,1748807432668,-430.0,0.00016438,2]
[363669902,1748807432678,-430.0,0.00016438,2]
[363669903,1748807432687,-430.0,0.00016438,2]
[363669904,1748807432698,-430.0,0.00016438,2]
[363669905,1748807432712,-430.0,0.00016438,2]
[363669906,1748807432727,-430.0,0.00016438,2]
[363669907,1748807432738,-430.0,0.00016438,2]
[363669908,1748807432748,-430.0,0.00016438,2]
[363669909,1748807432758,-430.0,0.00016438,2]
[363669910,1748807432768,-430.0,0.00016438,2]
[363669911,1748807432778,-430.0,0.00016438,2]
[363669912,1748807432789,-500.0,0.00016438,2]
[363669913,1748807432799,-500.0,0.00016438,2]
[363669914,1748807432809,-428.17290676,0.00016438,2]
[363669915,1748807432819,-430.0,0.00016438,2]
[363669916,1748807432829,-430.0,0.00016438,2]
[363669917,1748807432838,-430.0,0.00016438,2]
[363669918,1748807432848,-430.0,0.00016438,2]
[363669919,1748807432857,-430.0,0.00016438,2]
[363669920,1748807432867,-430.0,0.00016438,2]
[363669921,1748807432877,-430.0,0.00016438,2]
[363669922,1748807432887,-430.0,0.00016438,2]
[363669923,1748807432896,-430.0,0.00016438,2]
[363669924,1748807432905,-430.0,0.00016438,2]
[363669925,1748807432916,-430.0,0.00016438,2]
[363669926,1748807432925,-430.0,0.00016438,2]
[363669927,1748807432935,-430.0,0.00016438,2]
[363669928,1748807432945,-430.0,0.00016438,2]
[363669929,1748807432954,-421.91492152,0.00016438,2]
[363669930,1748807432963,-430.0,0.00016438,2]
[363669931,1748807432973,-430.0,0.00016438,2]
[363669932,1748807432983,-430.0,0.00016438,2]
[363669933,1748807432993,-430.0,0.00016438,2]
[363669934,1748807433003,-430.0,0.00016438,2]
[363669935,1748807433012,-430.0,0.00016438,2]
[363669936,1748807433022,-430.0,0.00016438,2]
[363669937,1748807433032,-430.0,0.00016438,2]
[363669938,1748807433043,-442.375809,0.00016438,2]
[363669939,1748807433053,-430.0,0.00016438,2]
[363669940,1748807433063,-430.0,0.00016438,2]
[363669941,1748807433074,-430.0,0.00016438,2]
[363669942,1748807433084,-430.0,0.00016438,2]
[363669943,1748807433095,-400.0,0.00016438,2]
[363669944,1748807433107,-430.0,0.00016438,2]
[363669945,1748807433119,-430.0,0.00016438,2]
[363669946,1748807433129,-160.17829308,0.00016438,2]
[363669947,1748807433139,-430.0,0.00016438,2]
[363669948,1748807433149,-430.0,0.00016438,2]
[363669949,1748807433159,-430.0,0.00016438,2]
[363669950,1748807433169,-430.0,0.00016438,2]
[363669951,1748807433180,-430.0,0.00016438,2]
[363669952,1748807433190,-430.0,0.00016438,2]
[363669953,1748807433200,-430.0,0.00016438,2]
[363669954,1748807433210,-150.05110116,0.00016438,2]
[363669955,1748807433220,-430.0,0.00016438,2]
[363669956,1748807433230,-430.0,0.00016438,2]
[363669957,1748807433241,-430.0,0.00016438,2]
[363669958,1748807433250,-430.0,0.00016438,2]
[363669959,1748807433272,-430.0,0.00016438,2]
[363669960,1748807433282,-430.0,0.00016438,2]
[363669961,1748807433294,-390.18330665,0.00016438,2]
[363669962,1748807433304,-430.0,0.00016438,2]
[363669963,1748807433315,-430.0,0.00016438,2]
[363669964,1748807433325,-430.0,0.00016438,2]
[363669965,1748807433336,-430.0,0.00016438,2]
[363669966,1748807433346,-430.0,0.00016438,2]
[363669967,1748807433357,-430.0,0.00016438,2]
[363669968,1748807433367,-430.0,0.00016438,2]
[363669969,1748807433377,-430.0,0.00016438,2]
[363669970,1748807433388,-430.0,0.00016438,2]
[363669971,1748807433398,-430.0,0.00016438,2]
[363669972,1748807433409,-430.0,0.00016438,2]
[363669974,1748807433419,-430.0,0.00016438,2]
[363669975,1748807433429,-430.0,0.00016438,2]
[363669976,1748807433439,-430.0,0.00016438,2]
[363669977,1748807433449,-430.0,0.00016438,2]
[363669978,1748807433459,-430.0,0.00016438,2]
[363669979,1748807433469,-430.0,0.00016438,2]
[363669980,1748807433479,-430.0,0.00016438,2]
[363669981,1748807433490,-430.0,0.00016438,2]
[363669982,1748807433500,-430.0,0.00016438,2]
[363669983,1748807433510,-430.0,0.00016438,2]
[363669984,1748807433521,-430.0,0.00016438,2]
[363669985,1748807433531,-430.0,0.00016438,2]
[363669986,1748807433542,-430.0,0.00016438,2]
[363669987,1748807433553,-430.0,0.00016438,2]
[363669988,1748807433563,-430.0,0.00016438,2]
[363669989,1748807433573,-430.0,0.00016438,2]
[363669990,1748807433583,-430.0,0.00016438,2]
[363669991,1748807433593,-430.0,0.00016438,2]
[363669992,1748807433603,-430.0,0.00016438,2]
[363669993,1748807433613,-430.0,0.00016438,2]
[363669994,1748807433623,-437.56840292,0.00016438,2]
[363669995,1748807433633,-451.50273637,0.00016438,2]
[363669996,1748807433643,-430.0,0.00016438,2]
[363669997,1748807433653,-500.0,0.00016438,2]
[363669998,1748807433663,-430.0,0.00016438,2]
[363669999,1748807433676,-430.0,0.00016438,2]
[363670000,1748807433686,-430.0,0.00016438,2]
[363670001,1748807433696,-430.0,0.00016438,2]
[363670002,1748807433709,-430.0,0.00016438,2]
[363670003,1748807433719,-430.0,0.00016438,2]
[363670004,1748807433729,-430.0,0.00016438,2]
[363670005,1748807433740,-430.0,0.00016438,2]
[363670006,1748807433751,-430.0,0.00016438,2]
[363670007,1748807433761,-430.0,0.00016438,2]
[363670008,1748807433772,-430.0,0.00016438,2]
[363670009,1748807433783,-430.0,0.00016438,2]
[363670010,1748807433794,-430.0,0.00016438,2]
[363670011,1748807433804,-430.0,0.00016438,2]
[363670012,1748807433814,-430.0,0.00016438,2]
[363670013,1748807433823,-430.0,0.00016438,2]
[363670014,1748807433834,-624.76,0.00016438,2]
[363670015,1748807433844,-430.0,0.00016438,2]
[363670016,1748807433853,-430.0,0.00016438,2]
[363670017,1748807433863,-430.0,0.00016438,2]
[363670018,1748807433873,-430.0,0.00016438,2]
[363670019,1748807433883,-440.09,0.00016438,2]
[363670020,1748807433893,-430.0,0.00016438,2]
[363670021,1748807433903,-459.63,0.00016438,2]
[363670022,1748807433913,-430.0,0.00016438,2]
[363670023,1748807433923,-430.0,0.00016438,2]
[363670024,1748807433933,-430.0,0.00016438,2]
[363670025,1748807433942,-430.0,0.00016438,2]
[363670026,1748807433953,-430.0,0.00016438,2]
[363670027,1748807433963,-430.0,0.00016438,2]
[363670028,1748807433973,-430.0,0.00016438,2]
[363670029,1748807433983,-430.0,0.00016438,2]
[363670030,1748807433993,-430.0,0.00016438,2]
[363670031,1748807434002,-430.0,0.00016438,2]
[363670032,1748807434013,-430.0,0.00016438,2]
[363670033,1748807434022,-430.0,0.00016438,2]
[363670034,1748807434033,-430.0,0.00016438,2]
[363670035,1748807434043,-430.0,0.00016438,2]
[363670036,1748807434053,-500.0,0.00016438,2]
[363670037,1748807434063,-430.0,0.00016438,2]
[363670038,1748807434073,-430.0,0.00016438,2]
[363670039,1748807434083,-430.0,0.00016438,2]
[363670040,1748807434093,-430.0,0.00016438,2]
[363670041,1748807434103,-438.99,0.00016438,2]
[363670042,1748807434113,-430.0,0.00016438,2]
[363670043,1748807434122,-430.0,0.00016438,2]
[363670044,1748807434132,-430.0,0.00016438,2]
[363670045,1748807434143,-430.0,0.00016438,2]
[363670046,1748807434153,-430.0,0.00016438,2]
[363670047,1748807434163,-430.0,0.00016438,2]
[363670048,1748807434173,-430.0,0.00016438,2]
[363670049,1748807434183,-430.0,0.00016438,2]
[363670050,1748807434193,-430.0,0.00016438,2]
[363670051,1748807434203,-430.0,0.00016438,2]
[363670052,1748807434214,-430.0,0.00016438,2]
[363670053,1748807434223,-430.0,0.00016438,2]
[363670054,1748807434234,-430.0,0.00016438,2]
[363670055,1748807434244,-430.0,0.00016438,2]
[363670056,1748807434254,-401.32539426,0.00016438,2]
[363670057,1748807434264,-430.0,0.00016438,2]
[363670058,1748807434274,-430.0,0.00016438,2]
[363670059,1748807434283,-430.0,0.00016438,2]
[363670060,1748807434294,-430.0,0.00016438,2]
[363670061,1748807434303,-430.0,0.00016438,2]
[363670062,1748807434313,-331.93827581,0.00016438,2]
[363670063,1748807434326,-430.0,0.00016438,2]
[363670064,1748807434336,-430.0,0.00016438,2]
[363670065,1748807434346,-744.51,0.00016438,2]
[363670066,1748807434356,-635.39,0.00016438,2]
[363670067,1748807434367,-430.0,0.00016438,2]
[363670068,1748807434377,-430.0,0.00016438,2]
[363670069,1748807434388,-281.62673082,0.00016438,2]
[363670070,1748807434398,-429.94939126,0.00016438,2]
[363670071,1748807434408,-430.0,0.00016438,2]
[363670072,1748807434418,-430.0,0.00016438,2]
[363670073,1748807434428,-430.0,0.00016438,2]
[363670074,1748807434438,-430.0,0.00016438,2]
[363670075,1748807434448,-430.0,0.00016438,2]
[363670076,1748807434458,-430.0,0.00016438,2]
[363670077,1748807434468,-430.0,0.00016438,2]
[363670078,1748807434479,-430.0,0.00016438,2]
[363670079,1748807434489,-838.7,0.00016438,2]
[363670080,1748807434498,-1060.09,0.00016438,2]
[363670081,1748807434508,-430.0,0.00016438,2]
[363670082,1748807434518,-430.0,0.00016438,2]
[363670083,1748807434528,-798.82,0.00016438,2]
[363670084,1748807434538,-430.0,0.00016438,2]
[363670085,1748807434548,-430.0,0.00016438,2]
[363670086,1748807434558,-430.0,0.00016438,2]
[363670087,1748807434568,-430.0,0.00016438,2]
[363670088,1748807434579,-430.0,0.00016438,2]
[363670089,1748807434589,-430.0,0.00016438,2]
[363670090,1748807434600,-1014.48,0.00016438,2]
[363670091,1748807434609,-430.0,0.00016438,2]
[363670092,1748807434620,-430.0,0.00016438,2]
[363670093,1748807434630,-430.0,0.00016438,2]
[363670094,1748807434640,-488.15,0.00016438,2]
[363670095,1748807434650,-430.0,0.00016438,2]
[363670096,1748807434660,-783.73,0.00016438,2]
[363670097,1748807434670,-430.0,0.00016438,2]
[363670098,1748807434680,-211.3642015,0.00016438,2]
[363670099,1748807434689,-662.27,0.00016438,2]
[363670100,1748807434699,-430.0,0.00016438,2]
[363670101,1748807434712,-430.0,0.00016438,2]
[363670102,1748807434722,-430.0,0.00016438,2]
[363670103,1748807434731,-430.0,0.00016438,2]
[363670104,1748807434741,-500.0,0.00016438,2]
[363670105,1748807434752,-1129.72448899,0.00016612,2]
[363670106,1748807434762,-4567.6203608,0.00016632,2]
[363670107,1748807434772,-430.0,0.00016712,2]
[363670108,1748807434784,-430.0,0.00016712,2]
[363670109,1748807434796,-430.0,0.00016712,2]
[363670110,1748807434806,-430.0,0.00016712,2]
[363670111,1748807434816,-430.0,0.00016712,2]
[363670112,1748807434826,-430.0,0.00016712,2]
[363670113,1748807434836,-430.0,0.00016712,2]
[363670114,1748807434846,-470.2837575,0.00016712,2]
[363670115,1748807434856,-430.0,0.00016712,2]
[363670116,1748807434866,-430.0,0.00016712,2]
[363670117,1748807434877,-430.0,0.00016712,2]
[363670118,1748807434887,-430.0,0.00016712,2]
[363670119,1748807434897,-430.0,0.00016712,2]
[363670120,1748807434907,-430.0,0.00016712,2]
[363670121,1748807434917,-430.0,0.00016712,2]
[363670122,1748807434927,-430.0,0.00016712,2]
[363670123,1748807434937,-430.0,0.00016712,2]
[363670124,1748807434946,-430.0,0.00016712,2]
[363670125,1748807434956,-430.0,0.00016712,2]
[363670126,1748807434967,-360.18798946,0.00016712,2]
[363670127,1748807434977,-430.0,0.00016712,2]
[363670128,1748807434987,-430.0,0.00016712,2]
[363670129,1748807434998,-430.0,0.00016712,2]
[363670130,1748807435008,-430.0,0.00016712,2]
[363670131,1748807435018,-185.85231248,0.00016712,2]
[363670132,1748807435028,-430.0,0.00016712,2]
[363670133,1748807435040,-422.40592697,0.00016712,2]
[363670134,1748807435050,-430.0,0.00016712,2]
[363670135,1748807435060,-430.0,0.00016712,2]
[363670136,1748807435070,-430.0,0.00016712,2]
[363670137,1748807435080,-430.0,0.00016712,2]
[363670138,1748807435090,-430.0,0.00016712,2]
[363670139,1748807435100,-430.0,0.00016712,2]
[363670140,1748807435110,-430.0,0.00016712,2]
[363670141,1748807435119,-430.0,0.00016712,2]
[363670142,1748807435129,-430.0,0.00016712,2]
[363670143,1748807435139,-430.0,0.00016712,2]
[363670144,1748807435148,-384.22252767,0.00016712,2]
[363670145,1748807435158,-365.65746534,0.00016712,2]
[363670146,1748807435167,-430.0,0.00016712,2]
[363670147,1748807435177,-500.0,0.00016712,2]
[363670148,1748807435187,-430.0,0.00016712,2]
[363670149,1748807435197,-430.0,0.00016712,2]
[363670150,1748807435207,-430.0,0.00016712,2]
[363670151,1748807435217,-430.0,0.00016712,2]
[363670152,1748807435227,-463.42304161,0.00016712,2]
[363670153,1748807435236,-430.0,0.00016712,2]
[363670154,1748807435245,-430.0,0.00016712,2]
[363670155,1748807435255,-430.0,0.00016712,2]
[363670156,1748807435265,-430.0,0.00016712,2]
[363670157,1748807435275,-430.0,0.00016712,2]
[363670158,1748807435285,-430.0,0.00016712,2]
[363670159,1748807435296,-430.0,0.00016712,2]
[363670160,1748807435306,-624.76,0.00016712,2]
[363670161,1748807435316,-430.0,0.00016712,2]
[363670162,1748807435327,-430.0,0.00016712,2]
[363670163,1748807435337,-440.09,0.00016712,2]
[363670164,1748807435347,-459.63,0.00016712,2]
[363670165,1748807435478,-430.0,0.00016712,2]
[363670166,1748807435489,-430.0,0.00016712,2]
[363670167,1748807435499,-430.0,0.00016712,2]
[363670168,1748807435508,-430.0,0.00016712,2]
[363670169,1748807435518,-430.0,0.00016712,2]
[363670170,1748807435528,-200.5984606,0.00016712,2]
[363670171,1748807435539,-198.47788284,0.00016712,2]
[363670172,1748807435549,-151.0,0.00016712,2]
[363670173,1748807435559,-201.06596654,0.00016712,2]
[363670174,1748807435568,-198.0,0.00016712,2]
[363670175,1748807435578,-430.0,0.00016712,2]
[363670176,1748807435588,-500.0,0.00016712,2]
[363670177,1748807435598,-430.0,0.00016712,2]
[363670178,1748807435608,-430.0,0.00016712,2]
[363670179,1748807435618,-430.0,0.00016712,2]
[363670180,1748807435629,-430.0,0.00016712,2]
[363670181,1748807435639,-438.99,0.00016712,2]
[363670182,1748807435648,-430.0,0.00016712,2]
[363670183,1748807435658,-430.0,0.00016712,2]
[363670184,1748807435668,-430.0,0.00016712,2]
[363670185,1748807435677,-430.0,0.00016712,2]
[363670186,1748807435687,-430.0,0.00016712,2]
[363670187,1748807435697,-430.0,0.00016712,2]
[363670188,1748807435708,-430.0,0.00016712,2]
[363670189,1748807435718,-430.0,0.00016712,2]
[363670190,1748807435728,-430.0,0.00016712,2]
[363670191,1748807435738,-430.0,0.00016712,2]
[363670192,1748807435748,-430.0,0.00016712,2]
[363670193,1748807435759,-430.0,0.00016712,2]
[363670194,1748807435769,-430.0,0.00016712,2]
[363670195,1748807435778,-430.0,0.00016712,2]
[363670196,1748807435788,-430.0,0.00016712,2]
[363670197,1748807435799,-430.0,0.00016712,2]
[363670198,1748807435808,-430.0,0.00016712,2]
[363670199,1748807435818,-744.51,0.00016712,2]
[363670200,1748807435828,-635.39,0.00016712,2]
[363670201,1748807435838,-473.98719117,0.00016712,2]
[363670202,1748807435848,-430.0,0.00016712,2]
[363670203,1748807435857,-430.0,0.00016712,2]
[363670204,1748807435867,-430.0,0.00016712,2]
[363670205,1748807435877,-430.0,0.00016712,2]
[363670206,1748807435886,-430.0,0.00016712,2]
[363670207,1748807435896,-273.6,0.00016712,2]
[363670208,1748807435906,-838.7,0.00016712,2]
[363670209,1748807435916,-1060.09,0.00016712,2]
[363670210,1748807435926,-430.0,0.00016712,2]
[363670211,1748807435935,-430.0,0.00016712,2]
[363670212,1748807435945,-798.82,0.00016712,2]
[363670213,1748807435955,-430.0,0.00016712,2]
[363670214,1748807435964,-430.0,0.00016712,2]
[363670215,1748807435974,-152.29440534,0.00016712,2]
[363670216,1748807435983,-159.41906259,0.00016712,2]
[363670217,1748807435993,-151.0,0.00016712,2]
[363670218,1748807436003,-500.0,0.00016712,2]
[363670219,1748807436012,-430.0,0.00016712,2]
[363670220,1748807436022,-430.0,0.00016712,2]
[363670221,1748807436032,-151.37983469,0.00016712,2]
[363670222,1748807436042,-430.0,0.00016712,2]
[363670223,1748807436051,-151.0,0.00016712,2]
[363670224,1748807436061,-450.52,0.00016712,2]
[363670225,1748807436071,-151.0,0.00016712,2]
[363670226,1748807436080,-151.0,0.00016712,2]
[363670227,1748807436090,-1014.48,0.00016712,2]
[363670228,1748807436099,-437.02,0.00016712,2]
[363670229,1748807436109,-430.0,0.00016712,2]
[363670230,1748807436118,-430.0,0.00016712,2]
[363670231,1748807436128,-488.15,0.00016712,2]
[363670232,1748807436137,-221.87044723,0.00016712,2]
[363670233,1748807436147,-783.73,0.00016712,2]
[363670234,1748807436156,-430.0,0.00016712,2]
[363670235,1748807436166,-662.27,0.00016712,2]
[363670236,1748807436175,-430.0,0.00016712,2]
[363670237,1748807436184,-430.0,0.00016712,2]
[363670238,1748807436193,-372.79391183,0.00016712,2]